Workbook

Sheet OS CACFU
BT1: Seccion nominal del cable [AWG] | BU1: Costo inicial (CI)
A2: 16 | B2: 208 | C2: Más de 3 | BU2: Cable | BV2: Instalacion un conductor | BW2: Adicionar 1 conductor | BX2: Adicionar 2 conductores | BY2: Adicionar 3 conductores | BZ2: Total un Conductor | CA2: Total Adicionar 1 Conductor | CB2: Total Adicionar 2 Conductores | CC2: Total Adicionar 3 Conductores
A3: 14 | B3: 120 | C3: Más de 2 | BT3: 16 | BU3: $ 722 | BV3: $ 11,100 | BW3: $ 12,400 | BX3: $ 13,600 | BY3: $ 14,900 | BZ3: =BV3+BU3 -> $ 11,822 | CA3: =BU3+BW3 -> $ 13,122 | CB3: =2*BU3+BX3 -> $ 15,044 | CC3: =BY3+3*BU3 -> $ 17,066
A4: 12 | B4: 220 | C4: Más de 1 | BT4: 14 | BU4: $ 883 | BV4: =BV3+200 -> $ 11,300 | BW4: $ 12,600 | BX4: $ 13,800 | BY4: $ 15,100 | BZ4: =BV4+BU4 -> $ 12,183 | CA4: =BU4+BW4 -> $ 13,483 | CB4: =2*BU4+BX4 -> $ 15,566 | CC4: =BY4+3*BU4 -> $ 17,749
A5: 10 | B5: 380 | C5: Menos de 1 | BT5: 12 | BU5: $ 1,261 | BV5: $ 11,500 | BW5: $ 12,800 | BX5: $ 14,000 | BY5: $ 15,300 | BZ5: $ 12,761 | CA5: $ 14,061 | CB5: $ 16,522 | CC5: $ 19,083
A6: 8 | B6: 440 | C6: No tiene espacio | BT6: 10 | BU6: $ 1,824 | BV6: =BV5+500 -> $ 12,000 | BW6: =BW5+500 -> $ 13,300 | BX6: =BX5+500 -> $ 14,500 | BY6: =BY5+500 -> $ 15,800 | BZ6: $ 13,824 | CA6: $ 15,124 | CB6: $ 18,148 | CC6: $ 21,272
A7: 6 | BT7: 8 | BU7: $ 2,705 | BV7: =BV6+800 -> $ 12,800 | BW7: $ 14,100 | BX7: $ 15,300 | BY7: $ 16,600 | BZ7: $ 15,505 | CA7: $ 16,805 | CB7: $ 20,710 | CC7: $ 24,715
A8: 4 | BT8: 6 | BU8: $ 4,177 | BV8: $ 13,600 | BW8: $ 14,900 | BX8: $ 16,100 | BY8: $ 17,400 | BZ8: $ 17,777 | CA8: $ 19,077 | CB8: $ 24,454 | CC8: $ 29,931
A9: 3 | BT9: 4 | BU9: $ 6,445 | BV9: =BV8+950 -> $ 14,550 | BW9: $ 15,850 | BX9: $ 17,050 | BY9: $ 18,350 | BZ9: $ 20,995 | CA9: $ 22,295 | CB9: $ 29,940 | CC9: $ 37,685
A10: 2 | BT10: 3 | BU10: $ 8,562 | BV10: $ 15,500 | BW10: $ 16,800 | BX10: $ 18,000 | BY10: $ 19,300 | BZ10: $ 24,062 | CA10: $ 25,362 | CB10: $ 35,124 | CC10: $ 44,986
A11: 1 | BT11: 2 | BU11: $ 9,996 | BV11: =BV10+1300 -> $ 16,800 | BW11: =BW10+1300 -> $ 18,100 | BX11: =BX10+1300 -> $ 19,300 | BY11: =BY10+1300 -> $ 20,600 | BZ11: $ 26,796 | CA11: $ 28,096 | CB11: $ 39,292 | CC11: $ 50,588
A12: 1/0 | BT12: 1 | BU12: $ 11,677 | BV12: =BV11+1650 -> $ 18,450 | BW12: =BW11+1650 -> $ 19,750 | BX12: =BX11+1650 -> $ 20,950 | BY12: =BY11+1650 -> $ 22,250 | BZ12: $ 30,127 | CA12: $ 31,427 | CB12: $ 44,304 | CC12: $ 57,281
A13: 2/0 | BT13: 1/0 | BU13: $ 16,332 | BV13: =BV12+1100 -> $ 19,550 | BW13: =BW12+1100 -> $ 20,850 | BX13: =BX12+1100 -> $ 22,050 | BY13: =BY12+1100 -> $ 23,350 | BZ13: $ 35,882 | CA13: $ 37,182 | CB13: $ 54,714 | CC13: $ 72,346
A14: 3/0 | BT14: 2/0 | BU14: $ 20,408 | BV14: =BV13+1300 -> $ 20,850 | BW14: =BW13+1300 -> $ 22,150 | BX14: =BX13+1300 -> $ 23,350 | BY14: =BY13+1300 -> $ 24,650 | BZ14: $ 41,258 | CA14: $ 42,558 | CB14: $ 64,166 | CC14: $ 85,874
A15: 4/0 | BT15: 3/0 | BU15: $ 27,094 | BV15: =BV14+500 -> $ 21,350 | BW15: =BW14+500 -> $ 22,650 | BX15: =BX14+500 -> $ 23,850 | BY15: =BY14+500 -> $ 25,150 | BZ15: $ 48,444 | CA15: $ 49,744 | CB15: $ 78,038 | CC15: $ 106,432
A16: 250 | BT16: 4/0 | BU16: $ 31,977 | BV16: =BV15+3750 -> $ 25,100 | BW16: =BW15+3750 -> $ 26,400 | BX16: =BX15+3750 -> $ 27,600 | BY16: =BY15+3750 -> $ 28,900 | BZ16: $ 57,077 | CA16: $ 58,377 | CB16: $ 91,554 | CC16: $ 124,831
A17: 300 | BT17: 250 | BU17: $ 38,611 | BV17: =BV16+1100 -> $ 26,200 | BW17: =BW16+1100 -> $ 27,500 | BX17: =BX16+1100 -> $ 28,700 | BY17: =BY16+1100 -> $ 30,000 | BZ17: $ 64,811 | CA17: $ 66,111 | CB17: $ 105,922 | CC17: $ 145,833
A18: 350 | BT18: 300 | BU18: $ 46,081 | BV18: =BV17+2300 -> $ 28,500 | BW18: =BW17+2300 -> $ 29,800 | BX18: =BX17+2300 -> $ 31,000 | BY18: =BY17+2300 -> $ 32,300 | BZ18: $ 74,581 | CA18: $ 75,881 | CB18: $ 123,162 | CC18: $ 170,543
A19: 400 | BT19: 350 | BU19: $ 53,841 | BV19: =BV18+2000 -> $ 30,500 | BW19: =BW18+2000 -> $ 31,800 | BX19: =BX18+2000 -> $ 33,000 | BY19: =BY18+2000 -> $ 34,300 | BZ19: $ 84,341 | CA19: $ 85,641 | CB19: $ 140,682 | CC19: $ 195,823
A20: 500 | BT20: 400 | BU20: $ 62,088 | BV20: =BV19+2100 -> $ 32,600 | BW20: $ 33,900 | BX20: $ 35,100 | BY20: $ 36,400 | BZ20: $ 94,688 | CA20: $ 95,988 | CB20: $ 159,276 | CC20: $ 222,664
A21: 600 | BT21: 500 | BU21: $ 80,036 | BV21: $ 34,700 | BW21: $ 36,000 | BX21: $ 37,200 | BY21: $ 38,500 | BZ21: $ 114,736 | CA21: $ 116,036 | CB21: $ 197,272 | CC21: $ 278,608
A22: 700 | BT22: 600 | BU22: $ 94,730 | BV22: =BV21+3950 -> $ 38,650 | BW22: =BW21+4900 -> $ 40,900 | BX22: =BX21+4900 -> $ 42,100 | BY22: =BY21+4900 -> $ 43,400 | BZ22: $ 133,380 | CA22: $ 135,630 | CB22: $ 231,560 | CC22: $ 327,590
A23: 750 | BT23: 700 | BU23: $ 111,127 | BV23: =BV22+3200 -> $ 41,850 | BW23: =BW22+3200 -> $ 44,100 | BX23: =BX22+3200 -> $ 45,300 | BY23: =BY22+3200 -> $ 46,600 | BZ23: $ 152,977 | CA23: $ 155,227 | CB23: $ 267,554 | CC23: $ 379,981
A24: 800 | BT24: 750 | BU24: $ 119,826 | BV24: =BV23+2400 -> $ 44,250 | BW24: =BW23+2400 -> $ 46,500 | BX24: =BX23+2400 -> $ 47,700 | BY24: =BY23+2400 -> $ 49,000 | BZ24: $ 164,076 | CA24: $ 166,326 | CB24: $ 287,352 | CC24: $ 408,478
A25: 900 | BT25: 800 | BU25: $ 127,200 | BV25: =BV24+2500 -> $ 46,750 | BW25: =BW24+2500 -> $ 49,000 | BX25: =BX24+2500 -> $ 50,200 | BY25: =BY24+2500 -> $ 51,500 | BZ25: $ 173,950 | CA25: $ 176,200 | CB25: $ 304,600 | CC25: $ 433,100
A26: 1000 | BT26: 900 | BU26: $ 136,700 | BV26: =BV25+5300 -> $ 52,050 | BW26: =BW25+9500 -> $ 58,500 | BX26: $ 59,700 | BY26: $ 61,000 | BZ26: $ 188,750 | CA26: $ 195,200 | CB26: $ 333,100 | CC26: $ 471,100
BT27: 1000 | BU27: $ 146,400 | BV27: =BV26+5300 -> $ 57,350 | BW27: $ 68,000 | BX27: $ 69,200 | BY27: $ 70,500 | BZ27: $ 203,750 | CA27: $ 214,400 | CB27: $ 362,000 | CC27: $ 509,700
BT28: 1250 | BU28: $ 156,200 | BV28: =BV27+5300 -> $ 62,650 | BW28: $ 77,500 | BX28: $ 78,700 | BY28: $ 80,000 | BZ28: $ 218,850 | CA28: $ 233,700 | CB28: $ 391,100 | CC28: $ 548,600
DF43: =IF(L48>3,MIN(CA48,CM48,CY48,DO48),IF(L48>2,MIN(CA48,CM48,DO48),IF(L48>1,MIN(CA48,DO48),IF(L48>0,DO48,"Circuito Sin Disponibilidad")))) -> Circuito Sin Disponibilidad
D44: 3 | BP44: Adicionar Conductores Del Mismo Calibre (ACMC)
B45: Nota: | C45: En esta version 1.0 de Freeware OS CACFU se analizan simultaneamente maximo 30 circuitos. | X45: Conductor Técnico | AG45: Elección del Conductor | AS45: Conductor Económico | AW45: Costos | DC45: Cambio de Conductor de Diferente Calibre (CCDC)
W46: Circuito | X46: Corriente [A] | Y46: Sección Actual (SA) [AWG] | Z46: Longitud [m] | AA46: Seccion [mm²] | AB46: Costo inicial (CI) [$/m] | AC46: Peso Aproximado [Kg/Km] | AD46: Resistencia de c.a. del conductor [Ω] | AE46: Peso aproximado [Kg] | AF46: Cantidad Auxiliar F | AG46: Seccion Nominal del Conductor (Sec) [mm²] | AH46: Secciones Normalizadas [mm²] | AJ46: Seccion [AWG] o [Kcmils] | AL46: Resistencia de c.a. del conductor [Ω] | AN46: Costo inicial (CI) [$/m] | AP46: Costo Total (CT) [$] | AS46: Económico [$] | AU46: Calibre Económico [AWG] | AV46: Peso Aproximado [Kg/Km] | AW46: Seccion [AWG] o [Kcmils] | AY46: Costo Inicial | BC46: Costos Operativos | BH46: CostoTotal | BM46: Emisiones de CO₂ | BP46: Costos Operativos Actuales (CJA) | BQ46: Disponibilidad del circuito (Dc) | BR46: Adicionar 1 Conductor A1CMC | CB46: Emisiones de CO₂ | CE46: Adicionar 2 Conductores A2CMC | CN46: Emisiones de CO₂ | CQ46: Adicionar 3 Conductores A3CMC | CZ46: Emisiones de CO₂ | DC46: Selección de la Sección | DI46: Costos Sección de Cambio | DL46: Aspéctos económicos | DP46: Emisiones de CO₂
B47: Nombre del Circuito | C47: Imáx.[A] | D47: Calibre Instalado AWG | E47: Longitud [m] | F47: Nivel de Tensión [V] | G47: Cantidad de Fases | H47: Cantidad de Conductores por fase | I47: Horas por dia que Opera | J47: Dias a la semana que Opera | K47: Temperatura de puntos Calientes [°C] | L47: Conductores adicionales que se puedan instalar. | AH47: por encima | AI47: por debajo | AJ47: por debajo | AK47: por encima | AL47: por encima | AM47: por debajo | AN47: por encima | AO47: por debajo | AP47: por encima | AQ47: por debajo | AW47: Económico | AX47: Técnico | AY47: Económico | AZ47: Técnico | BA47: Ec/Tec | BB47: Diferencia | BC47: Económico | BD47: Técnico | BE47: Ec/Tec | BF47: Diferencia | BG47: Ahorro Anual | BH47: Económico | BI47: Técnico | BJ47: Ec/Tec | BK47: Diferencia | BL47: Retorno [años] | BM47: Reduccion de CO₂ [Kg ] | BN47: Aumento de CO₂ [Kg ] | BO47: Ahorro de Emisiones CO₂ [Kg] | BR47: circuito | BS47: Seccion [mm²] | BT47: Resistencia de c.a. del conductor [Ω] | BU47: Costo Inversion (CI) [$] | BV47: Costos Operativos (CJ) A1CMC | BW47: Costo Total (CT) [$] | BX47: A1CMC/ Actual | BY47: Diferencia | BZ47: Ahorro Anual | CA47: TIEMPO DE RETORNO | CB47: Reduccion de CO₂ [Kg ] Z1 | CC47: Aumento de CO₂ [Kg ] Z2 | CD47: Ahorro de Emisiones CO₂ [Kg] | CE47: Sección [mm²] | CF47: Resistencia de c.a. del conductor [Ω] | CG47: Costo Inversión (CI) [$] | CH47: Costos Operativos (CJ) A2CMC | CI47: Costo Total (CT) [$] | CJ47: A2CMC/ Actual | CK47: Diferencia | CL47: Ahorro Anual | CM47: TIEMPO DE RETORNO | CN47: Reduccion de CO₂ Z1 [Kg ] | CO47: Aumento de CO₂ Z2 [Kg ] | CP47: Ahorro de Emisiones CO₂ [Kg] | CQ47: Sección [mm²] | CR47: Resistencia de c.a. del conductor [Ω] | CS47: Costo Inversión (CI) [$] | CT47: Costos Operativos (CJ) A3CMC | CU47: Costo Total (CT) [$] | CV47: A3CMC/ Actual | CW47: Diferencia | CX47: Ahorro Anual | CY47: TIEMPO DE RETORNO | CZ47: Reduccion de CO₂ Z1 [Kg ] | DA47: Aumento de CO₂ Z2 [Kg ] | DB47: Ahorro de Emisiones CO₂ [Kg] | DC47: Sección por disponibilidad [mm²] | DD47: Seccion SEC [mm²] | DE47: Seccion de Cambio [mm²] | DF47: Resistencia de c.a. del conductor [Ω] | DG47: Seccion Normalizada [mm²] | DH47: Seccion [AWG] o [Kcmils] | DI47: Costo Inversion (CI) | DJ47: Costos Operativos (CJ) | DK47: Costo Total (CT) | DL47: CCDC/ SA | DM47: Diferencia | DN47: Ahorro Anual | DO47: TIEMPO DE RETORNO | DP47: Reducción de CO₂ Z1 [Kg ] | DQ47: Aumento de CO₂ Z2 [Kg ] | DR47: Ahorro de Emisiones CO₂ [Kg]
A48: 1 | B48: dfg | V48: =A48 -> 1 | W48: =B48 -> dfg | X48: =C48 -> 0.0 | Y48: =D48 -> 0 | Z48: 0.0 | AA48: =IF(EXACT(Y48,$C$165),$D$165,IF(EXACT(Y48,$C$166),$D$166,IF(EXACT(Y48,$C$167),$D$167,IF(EXACT(Y48,$C$168),$D$168,IF(EXACT(Y48,$C$169),$D$169,IF(EXACT(Y48,$C$170),$D$170,IF(EXACT(Y48,$C$171),$D$171,IF(EXACT(Y48,$C$172),$D$172,IF(EXACT(Y48,$C$173),$D$173,IF(EXACT(Y48,$C$174),$D$174,IF(EXACT(Y48,$C$175),$D$175,IF(EXACT(Y48,$C$176),$D$176,IF(EXACT(Y48,$C$177),$D$177,IF(EXACT(Y48,$C$178),$D$178,IF(EXACT(Y48,$C$179),$D$179,IF(EXACT(Y48,$C$180),$D$180,IF(EXACT(Y48,$C$181),$D$181,IF(EXACT(Y48,$C$182),$D$182,IF(EXACT(Y48,$C$183),$D$183,IF(EXACT(Y48,$C$184),$D$184,IF(EXACT(Y48,$C$185),$D$185,IF(EXACT(Y48,$C$186),$D$186,IF(EXACT(Y48,$C$187),$D$187,IF(EXACT(Y48,$C$188),$D$188,IF(EXACT(Y48,$C$189),$D$189,IF(EXACT(Y48,$C$190),$D$190,"")))))))))))))))))))))))))) ->  | AB48: =IF(EXACT(AA48,""),"",LOOKUP(AA48,$D$165:$D$190,$BZ$3:$BZ$28)) ->  | AC48: =IF(EXACT(AA48,""),"",AA48*8.96) ->  | AD48: =IF(EXACT(AA48,""),"",((ρ₂₀*B*(1+α₂₀*(θm-20)))/(AA48))*10^6) ->  | AE48: =IF(EXACT(AA48,""),"",AC48*Z48/1000) ->  | AF48: =G48*H48*Nc*(I48*J48*52*P/1000+D)*(Q/(1+i)) -> 0.0 | AG48: =1000*(((((X48)^2)*AF48*ρ₂₀*B*(1+α₂₀*(θm-20)))/(A))^(0.5)) -> 0.0 | AH48: =IF(EXACT(AA48,""),"",LOOKUP(AG48,$D$165:$D$190)) ->  | AI48: =IF(EXACT(AA48,""),"",LOOKUP(AG48,$D$165:$D$190,$AB$165:$AB$190)) ->  | AJ48: =IF(EXACT(AA48,""),"",LOOKUP(AG48,$D$165:$D$190,$C$165:$C$190)) ->  | AK48: =IF(EXACT(AA48,""),"",LOOKUP(AG48,$D$165:$D$190,$AA$165:$AA$190)) ->  | AL48: =IF(EXACT(AA48,""),"",((ρ₂₀*B*(1+α₂₀*(θm-20)))/(AH48))*10^6) ->  | AM48: =IF(EXACT(AA48,""),"",((ρ₂₀*B*(1+α₂₀*(θm-20)))/(AI48))*10^6) ->  | AN48: =IF(EXACT(AA48,""),"",LOOKUP(AH48,$D$165:$D$190,$BZ$3:$BZ$28)) ->  | AO48: =IF(EXACT(AA48,""),"",LOOKUP(AI48,$D$165:$D$190,$BZ$3:$BZ$28)) ->  | AP48: =IF(EXACT(AA48,""),"",AN48*Z48+((X48)^2)*AL48*Z48*AF48) ->  | AQ48: =IF(EXACT(AA48,""),"",AO48*Z48+((X48)^2)*AM48*Z48*AF48) ->  | AS48: =MIN(AP48,AQ48) -> $ 0 | AU48: =IF(AS48=AQ48,AJ48,AK48) ->  | AV48: =IF(EXACT(AA48,""),"",IF(AS48=AQ48,AI48,AH48)*8.96) ->  | AW48: =AU48 ->  | AX48: =Y48 -> 0 | AY48: =IF(EXACT(AA48,""),"",IF(AS48=AQ48,AO48,AN48)*Z48) ->  | AZ48: =IF(EXACT(AA48,""),"",AB48*Z48) ->  | BA48: =IF(EXACT(AA48,""),"",AY48/AZ48) ->  | BB48: =IF(EXACT(AA48,""),"",AY48-AZ48) ->  | BC48: =((X48)^2)*IF(AS48=AQ48,AM48,AL48)*Z48*AF48 ->  | BD48: =((X48)^2)*AD48*Z48*AF48 ->  | BE48: =BC48/BD48 ->  | BF48: =BC48-BD48 ->  | BG48: =BF48/N ->  | BH48: =BC48+AY48 ->  | BI48: =BD48+AZ48 ->  | BJ48: =BH48/BI48 ->  | BK48: =BH48-BI48 ->  | BL48: =BB48/ABS(BG48) ->  | BM48: =N*(G48*H48*Nc*(X48^2)*(AD48-IF(AS48=AQ48,AM48,AL48))*I48*J48*52*(Z48/1000)*K₁) ->  | BN48: =G48*H48*((AV48-AC48)*(Z48/1000)*K₂) ->  | BO48: =BM48-BN48 ->  | BP48: =((X48)^2)*(((ρ₂₀*B*(1+α₂₀*(θm-20)))/(AA48))*10^6)*Z48*AF48 ->  | BQ48: =IF(EXACT(L48,$C$2),3.1,IF(EXACT(L48,$C$3),2.1,IF(EXACT(L48,$C$4),1.1,IF(EXACT(L48,$C$5),0.9,IF(EXACT(L48,$C$6),0,""))))) ->  | BR48: =A48 -> 1 | BS48: =AA48*2 ->  | BT48: =((ρ₂₀*B*(1+α₂₀*(θm-20)))/(BS48))*10^6 ->  | BU48: =LOOKUP(AA48,$D$165:$D$190,$CA$3:$CA$28)*Z48 ->  | BV48: =((X48)^2)*BT48*Z48*AF48 ->  | BW48: =BU48+BV48 ->  | BX48: =BW48/BP48 ->  | BY48: =BP48-BV48 ->  | BZ48: =BY48/N ->  | CA48: =BU48/BZ48 ->  | CB48: =N*(G48*H48*Nc*(X48^2)*(AD48-BT48)*I48*J48*52*(Z48/1000)*K₁) ->  | CC48: =G48*H48*((BS48*8.96-AC48)*(Z48/1000)*K₂) ->  | CD48: =CB48-CC48 ->  | CE48: =AA48*3 ->  | CF48: =((ρ₂₀*B*(1+α₂₀*(θm-20)))/(CE48))*10^6 ->  | CG48: =LOOKUP(AA48,$D$165:$D$190,$CB$3:$CB$28)*Z48 ->  | CH48: =((X48)^2)*CF48*Z48*AF48 ->  | CI48: =CG48+CH48 ->  | CJ48: =CI48/BP48 ->  | CK48: =BP48-CH48 ->  | CL48: =CK48/N ->  | CM48: =CG48/ABS(CL48) ->  | CN48: =N*(G48*H48*Nc*(X48^2)*(AD48-CF48)*I48*J48*52*(Z48/1000)*K₁) ->  | CO48: =G48*H48*((CE48*8.96-AC48)*(Z48/1000)*K₂) ->  | CP48: =CN48-CO48 ->  | CQ48: =AA48*4 ->  | CR48: =((ρ₂₀*B*(1+α₂₀*(θm-20)))/(CQ48))*10^6 ->  | CS48: =LOOKUP(AA48,$D$165:$D$190,$CC$3:$CC$28)*Z48 ->  | CT48: =((X48)^2)*CR48*Z48*AF48 ->  | CU48: =CT48+CS48 ->  | CV48: =CU48/BP48 ->  | CW48: =BP48-CT48 ->  | CX48: =CW48/N ->  | CY48: =CS48/ABS(CX48) ->  | CZ48: =N*(G48*H48*Nc*(X48^2)*(AD48-CR48)*I48*J48*52*(Z48/1000)*K₁) ->  | DA48: =G48*H48*((CQ48*8.96-AC48)*(Z48/1000)*K₂) ->  | DB48: =CZ48-DA48 ->  | DC48: =BQ48*AA48+AA48 ->  | DD48: =(1000*(((((X48)^2)*AF48*ρ₂₀*B*(1+α₂₀*(θm-20)))/(LOOKUP(AJ48,$C$165:$C$190,$J$165:$J$190)))^(0.5))) ->  | DE48: =MIN(DC48:DD48) ->  | DF48: =((ρ₂₀*B*(1+α₂₀*(θm-20)))/(DG48))*10^6 ->  | DG48: =LOOKUP(DE48,$D$165:$D$190) ->  | DH48: =LOOKUP(DE48,$D$165:$D$190,$AA$165:$AA$190) ->  | DI48: =LOOKUP(DG48,$D$165:$D$190,$I$165:$I$190)*Z48 ->  | DJ48: =((X48)^2)*DF48*Z48*AF48 ->  | DK48: =DJ48+DI48 ->  | DL48: =DK48/BP48 ->  | DM48: =BP48-DJ48 ->  | DN48: =DM48/N ->  | DO48: =DI48/ABS(DN48) ->  | DP48: =N*(G48*H48*Nc*(X48^2)*(AD48-DF48)*I48*J48*52*(Z48/1000)*K₁) ->  | DQ48: =G48*H48*((DG48*8.96-AC48)*(Z48/1000)*K₂) ->  | DR48: =DP48-DQ48 -> 
A49: 2 | B49: sdfg | V49: 2 | W49: sdfg | X49: 0.0 | Y49: 0 | Z49: 0.0 | AC49: =IF(EXACT(AA49,""),"",AA49*8.96) ->  | AE49: =IF(EXACT(AA49,""),"",AC49*Z49/1000) ->  | AF49: 0.0 | AG49: 0.0 | AP49: =IF(EXACT(AA49,""),"",AN49*Z49+((X49)^2)*AL49*Z49*AF49) ->  | AQ49: =IF(EXACT(AA49,""),"",AO49*Z49+((X49)^2)*AM49*Z49*AF49) ->  | AS49: $ 0 | AV49: =IF(EXACT(AA49,""),"",IF(AS49=AQ49,AI49,AH49)*8.96) ->  | AX49: 0 | AY49: =IF(EXACT(AA49,""),"",IF(AS49=AQ49,AO49,AN49)*Z49) ->  | AZ49: =IF(EXACT(AA49,""),"",AB49*Z49) ->  | BA49: =IF(EXACT(AA49,""),"",AY49/AZ49) ->  | BB49: =IF(EXACT(AA49,""),"",AY49-AZ49) ->  | BL49: =BB49/ABS(BG49) ->  | BQ49: =IF(EXACT(L49,$C$2),3.1,IF(EXACT(L49,$C$3),2.1,IF(EXACT(L49,$C$4),1.1,IF(EXACT(L49,$C$5),0.9,IF(EXACT(L49,$C$6),0,""))))) ->  | BR49: 2 | BS49: =AA49*2 ->  | BT49: =((ρ₂₀*B*(1+α₂₀*(θm-20)))/(BS49))*10^6 ->  | BV49: =((X49)^2)*BT49*Z49*AF49 ->  | BW49: =BU49+BV49 ->  | BX49: =BW49/BP49 ->  | BY49: =BP49-BV49 ->  | BZ49: =BY49/N ->  | CA49: =BU49/BZ49 ->  | CK49: =BP49-CH49 ->  | CL49: =CK49/N ->  | CU49: =CT49+CS49 ->  | CV49: =CU49/BP49 ->  | CW49: =BP49-CT49 ->  | CX49: =CW49/N ->  | DC49: =BQ49*AA49+AA49 ->  | DJ49: =((X49)^2)*DF49*Z49*AF49 ->  | DK49: =DJ49+DI49 ->  | DL49: =DK49/BP49 ->  | DM49: =BP49-DJ49 ->  | DN49: =DM49/N ->  | DO49: =DI49/ABS(DN49) -> 
A50: 3 | B50: sdfg | V50: 3 | W50: sdfg | X50: 0.0 | Y50: =D50 -> 0 | Z50: =E50 -> 0.0 | AC50: =IF(EXACT(AA50,""),"",AA50*8.96) ->  | AE50: =IF(EXACT(AA50,""),"",AC50*Z50/1000) ->  | AF50: 0.0 | AG50: 0.0 | AS50: =MIN(AP50,AQ50) -> $ 0 | AU50: =IF(AS50=AQ50,AJ50,AK50) ->  | AW50: =AU50 ->  | AX50: =Y50 -> 0 | BC50: =((X50)^2)*IF(AS50=AQ50,AM50,AL50)*Z50*AF50 ->  | BD50: =((X50)^2)*AD50*Z50*AF50 ->  | BE50: =BC50/BD50 ->  | BF50: =BC50-BD50 ->  | BH50: =BC50+AY50 ->  | BI50: =BD50+AZ50 ->  | BJ50: =BH50/BI50 ->  | BK50: =BH50-BI50 ->  | BL50: =BB50/ABS(BG50) ->  | BO50: =BM50-BN50 ->  | BR50: 3 | CD50: =CB50-CC50 ->  | CE50: =AA50*3 ->  | CF50: =((ρ₂₀*B*(1+α₂₀*(θm-20)))/(CE50))*10^6 ->  | CH50: =((X50)^2)*CF50*Z50*AF50 ->  | CI50: =CG50+CH50 ->  | CJ50: =CI50/BP50 ->  | CM50: =CG50/ABS(CL50) ->  | CP50: =CN50-CO50 ->  | CQ50: =AA50*4 ->  | CR50: =((ρ₂₀*B*(1+α₂₀*(θm-20)))/(CQ50))*10^6 ->  | CT50: =((X50)^2)*CR50*Z50*AF50 ->  | CY50: =CS50/ABS(CX50) ->  | DB50: =CZ50-DA50 ->  | DE50: =MIN(DC50:DD50) ->  | DL50: =DK50/BP50 ->  | DO50: =DI50/ABS(DN50) ->  | DR50: =DP50-DQ50 -> 
V51: 0 | W51: 0 | X51: 0.0 | Y51: 0 | Z51: 0.0 | AF51: 0.0 | AG51: 0.0 | AP51: =IF(EXACT(AA51,""),"",AN51*Z51+((X51)^2)*AL51*Z51*AF51) ->  | AQ51: =IF(EXACT(AA51,""),"",AO51*Z51+((X51)^2)*AM51*Z51*AF51) ->  | AS51: $ 0 | AX51: 0 | AZ51: =IF(EXACT(AA51,""),"",AB51*Z51) ->  | BA51: =IF(EXACT(AA51,""),"",AY51/AZ51) ->  | BB51: =IF(EXACT(AA51,""),"",AY51-AZ51) ->  | BR51: 0 | BS51: =AA51*2 ->  | BT51: =((ρ₂₀*B*(1+α₂₀*(θm-20)))/(BS51))*10^6 ->  | BV51: =((X51)^2)*BT51*Z51*AF51 ->  | BW51: =BU51+BV51 ->  | BX51: =BW51/BP51 ->  | BY51: =BP51-BV51 ->  | BZ51: =BY51/N ->  | CA51: =BU51/BZ51 ->  | CK51: =BP51-CH51 ->  | CL51: =CK51/N ->  | CU51: =CT51+CS51 ->  | CV51: =CU51/BP51 ->  | CW51: =BP51-CT51 ->  | CX51: =CW51/N ->  | DC51: =BQ51*AA51+AA51 ->  | DJ51: =((X51)^2)*DF51*Z51*AF51 ->  | DK51: =DJ51+DI51 ->  | DM51: =BP51-DJ51 -> 
V52: 0 | W52: 0 | X52: 0.0 | Y52: 0 | Z52: 0.0 | AF52: 0.0 | AG52: 0.0 | AS52: $ 0 | AX52: 0 | BR52: 0
V53: 0 | W53: 0 | X53: 0.0 | Y53: 0 | Z53: 0.0 | AF53: 0.0 | AG53: 0.0 | AS53: $ 0 | AX53: 0 | BR53: 0 | DM53: =BP53-DJ53 ->  | DO53: =DI53/ABS(DN53) -> 
V54: 0 | W54: 0 | X54: 0.0 | Y54: 0 | Z54: 0.0 | AF54: 0.0 | AG54: 0.0 | AS54: $ 0 | AX54: 0 | BR54: 0
V55: 0 | W55: 0.0 | X55: 0.0 | Y55: 0 | Z55: 0.0 | AF55: 0.0 | AG55: 0.0 | AS55: =MIN(AP55,AQ55) -> $ 0 | AX55: 0 | BC55: =((X55)^2)*IF(AS55=AQ55,AM55,AL55)*Z55*AF55 ->  | BR55: 0
V56: 0 | W56: 0.0 | X56: 0.0 | Y56: 0 | Z56: 0.0 | AF56: 0.0 | AG56: 0.0 | AS56: $ 0 | AX56: 0 | BR56: 0
V57: 0 | W57: 0.0 | X57: 0.0 | Y57: 0 | Z57: 0.0 | AF57: 0.0 | AG57: 0.0 | AS57: $ 0 | AX57: 0 | BR57: 0
V58: 0 | W58: 0.0 | X58: 0.0 | Y58: 0 | Z58: 0.0 | AF58: 0.0 | AG58: 0.0 | AS58: $ 0 | AX58: 0 | BR58: 0
V59: 0 | W59: 0.0 | X59: 0.0 | Y59: 0 | Z59: 0.0 | AF59: 0.0 | AG59: 0.0 | AS59: $ 0 | AX59: 0 | BR59: 0
V60: 0 | W60: 0.0 | X60: 0.0 | Y60: 0 | Z60: 0.0 | AF60: 0.0 | AG60: 0.0 | AS60: $ 0 | AX60: 0 | BR60: 0
V61: 0 | W61: 0.0 | X61: 0.0 | Y61: 0 | Z61: 0.0 | AF61: 0.0 | AG61: 0.0 | AS61: $ 0 | AX61: 0 | BR61: 0
V62: 0 | W62: 0.0 | X62: 0.0 | Y62: 0 | Z62: 0.0 | AF62: 0.0 | AG62: 0.0 | AS62: $ 0 | AX62: 0 | BR62: 0
V63: 0 | W63: 0.0 | X63: 0.0 | Y63: 0 | Z63: 0.0 | AF63: 0.0 | AG63: 0.0 | AS63: $ 0 | AX63: 0 | BR63: 0
V64: 0 | W64: 0.0 | X64: 0.0 | Y64: 0 | Z64: 0.0 | AF64: 0.0 | AG64: 0.0 | AS64: $ 0 | AX64: 0 | BR64: 0
V65: 0 | W65: 0.0 | X65: 0.0 | Y65: 0 | Z65: 0.0 | AF65: 0.0 | AG65: 0.0 | AS65: $ 0 | AX65: 0 | BR65: 0
V66: 0 | W66: 0.0 | X66: 0.0 | Y66: 0 | Z66: 0.0 | AF66: 0.0 | AG66: 0.0 | AS66: $ 0 | AX66: 0 | BR66: 0
V67: 0 | W67: 0.0 | X67: 0.0 | Y67: 0 | Z67: 0.0 | AF67: 0.0 | AG67: 0.0 | AS67: $ 0 | AX67: 0 | BR67: 0
V68: 0 | W68: 0.0 | X68: 0.0 | Y68: 0 | Z68: 0.0 | AF68: 0.0 | AG68: 0.0 | AS68: $ 0 | AX68: 0 | BR68: 0
V69: 0 | W69: 0.0 | X69: 0.0 | Y69: 0 | Z69: 0.0 | AF69: 0.0 | AG69: 0.0 | AS69: $ 0 | AX69: 0 | BR69: 0
V70: 0 | W70: 0.0 | X70: 0.0 | Y70: 0 | Z70: 0.0 | AF70: 0.0 | AG70: 0.0 | AS70: $ 0 | AX70: 0 | BR70: 0
V71: 0 | W71: 0.0 | X71: 0.0 | Y71: 0 | Z71: 0.0 | AF71: 0.0 | AG71: 0.0 | AS71: $ 0 | AX71: 0 | BR71: 0
V72: 0 | W72: 0.0 | X72: 0.0 | Y72: 0 | Z72: 0.0 | AF72: 0.0 | AG72: 0.0 | AS72: $ 0 | AX72: 0 | BR72: 0
V73: 0 | W73: 0.0 | X73: 0.0 | Y73: 0 | Z73: 0.0 | AF73: 0.0 | AG73: 0.0 | AS73: $ 0 | AX73: 0 | BR73: 0
V74: 0 | W74: 0.0 | X74: 0.0 | Y74: 0 | Z74: 0.0 | AF74: 0.0 | AG74: 0.0 | AS74: $ 0 | AX74: 0 | BR74: 0
V75: 0 | W75: 0.0 | X75: 0.0 | Y75: 0 | Z75: 0.0 | AF75: 0.0 | AG75: 0.0 | AS75: $ 0 | AX75: 0 | BR75: 0
V76: 0 | W76: 0.0 | X76: 0.0 | Y76: 0 | Z76: 0.0 | AF76: 0.0 | AG76: 0.0 | AS76: $ 0 | AX76: 0 | BR76: 0
V77: 0 | W77: 0.0 | X77: 0.0 | Y77: 0 | Z77: 0.0 | AF77: 0.0 | AG77: 0.0 | AS77: $ 0 | AX77: 0 | BR77: 0
AY86: Proyecto Total | AZ86: Costo Inicial Total | BC86: Costos Operativos Totales | BG86: Proyecto Total | BH86: Costo Total del Proyecto | BM86: Emisiones de CO₂
B87: Resumen de Resultados OS CACFU | C87: Inversion TOTAL [$] | D87: Ahorro Anual Total | E87: Tiempo de Retorno | F87: Ahorro Total de Emisiones CO₂ [TON] | H87: Nota 1: | I87: Si el costo de los conductores para su proyecto es menor, su proyecto es mas favorable para la inversion; estos valores se pueden actualizar y guardar en las "Tablas". Los resultados están expresados en pesos Colombianos.
C88: =IFERROR(SUM(C91:C120),"") -> $ 0 | D88: =IFERROR(SUM(D91:D120),"") -> $ 0 | E88: =IFERROR(C88/D88,"") ->  | F88: =IFERROR(SUM(F91:F120)/1000,"") -> 0.0 | H88: Nota 2: | I88: Para guardar los resultados de esta página, seleccione, copie y pegue en su informe.
H89: Nota 3: | I89: Los datos de inversion total incluyen el costo del cable y de mano de obra. No incluye cambios en infraestructura. | AZ89: Pesos | BA89: Ec/Tec | BB89: Diferencia | BC89: Pesos | BD89: Ec/Tec | BE89: Diferencia | BF89: Ahorro Anual | BH89: Pesos | BI89: Ec/Tec | BJ89: Diferencia | BK89: Retorno [años] | BM89: Total Reducciones de CO₂ [Ton ] | BN89: Total Aumento de CO₂ [Ton ] | BO89: Total Ahorro de Emisiones CO₂ [Ton]
B90: Circuito | C90: Inversión | D90: Ahorro Anual | E90: Tiempo de Retorno | F90: Ahorro de Emisiones CO₂ [Kg] | G90: Conductor Recomendado [AWG] o [Kcmil] | H90: Procedimiento | AY90: ECONÓMICO | AZ90: =SUM(AY48:AY54) -> $ 0 | BA90: =AZ90/AZ91 ->  | BB90: =AZ90-AZ91 -> $ 0 | BC90: =SUM(BC48:BC54) ->  | BD90: =BC90/BC91 ->  | BE90: =BC90-BC91 ->  | BF90: =BE90/N ->  | BG90: ECONÓMICO | BH90: =BC90+AZ90 ->  | BI90: =BH90/BH91 ->  | BJ90: =BH90-BH91 ->  | BK90: =BB90/ABS(BF90) -> 
A91: =IF(ISBLANK(B48),"",A48) -> 1 | B91: =IF(ISBLANK(B48),"",B48) -> dfg | C91: =IFERROR(IF(ISBLANK(B48),"",IF(EXACT(L48,"No tiene"),"Este circuito",IF(E91=DO48,DI48,IF(E91=CY48,CS48,IF(E91=CM48,CG48,IF(E91=CA48,BU48,"")))))),"") ->  | D91: =IFERROR(IF(ISBLANK(B48),"",IF(EXACT(L48,"No tiene"),"no",IF(E91=DO48,DN48,IF(E91=CY48,CX48,IF(E91=CM48,CL48,IF(E91=CA48,BZ48,"")))))),"") ->  | E91: =IFERROR(IF(ISBLANK(B48),"",IF(EXACT(L48,"No tiene"),"tiene",IF(EXACT(L48,$C$2),MIN(CA48,CM48,CY48,DO48),IF(EXACT(L48,$C$3),MIN(CA48,CM48,DO48),IF(EXACT(L48,$C$4),MIN(CA48,DO48),IF(EXACT(L48,$C$5),DO48,"No Tiene")))))),"") -> No Tiene | F91: =IFERROR(IF(ISBLANK(B48),"",IF(EXACT(L48,"No tiene"),"Disponibilidad",IF(E91=DO48,DR48,IF(E91=CY48,DB48,IF(E91=CM48,CP48,IF(E91=CA48,CD48,"")))))),"") ->  | G91: =IFERROR(IF(ISBLANK(B48),"",IF(EXACT(L48,"No tiene"),"",IF(ISBLANK(B48),"",IF(E91=DO48,DH48,IF(E91=CY48,Y48,IF(E91=CM48,Y48,IF(E91=CA48,Y48,""))))))),"") ->  | H91: =IFERROR(IF(ISBLANK(B48),"",IF(EXACT(L48,"No tiene"),"",IF(E91=DO48,"Para este Circuito lo recomendable es Cambiar el Conductor por el Conductor Recomendado",IF(E91=CY48,"Lo recomendable para este circuito es adicionar 3 conductores del mismo calibre del conductor recomendado",IF(E91=CM48,"Lo recomendable para este circuito es adicionar 2 conductores del mismo calibre del conductor recomendado",IF(E91=CA48,"Lo recomendable para este circuito es adicionar 1 conductor del mismo calibre del conductor recomendado","")))))),"") ->  | AY91: TÉCNICO | AZ91: =SUM(AZ48:AZ54) -> $ 0 | BC91: =SUM(BD48:BD54) ->  | BG91: TÉCNICO | BH91: =BC91+AZ91 -> 
A92: =IF(ISBLANK(B49),"",A49) -> 2 | B92: =IF(ISBLANK(B49),"",B49) -> sdfg | C92: =IFERROR(IF(ISBLANK(B49),"",IF(EXACT(L49,"No tiene"),"Este circuito",IF(E92=DO49,DI49,IF(E92=CY49,CS49,IF(E92=CM49,CG49,IF(E92=CA49,BU49,"")))))),"") ->  | D92: =IFERROR(IF(ISBLANK(B49),"",IF(EXACT(L49,"No tiene"),"no",IF(E92=DO49,DN49,IF(E92=CY49,CX49,IF(E92=CM49,CL49,IF(E92=CA49,BZ49,"")))))),"") ->  | E92: =IFERROR(IF(ISBLANK(B49),"",IF(EXACT(L49,"No tiene"),"tiene",IF(EXACT(L49,$C$2),MIN(CA49,CM49,CY49,DO49),IF(EXACT(L49,$C$3),MIN(CA49,CM49,DO49),IF(EXACT(L49,$C$4),MIN(CA49,DO49),IF(EXACT(L49,$C$5),DO49,"No Tiene")))))),"") -> No Tiene | F92: =IFERROR(IF(ISBLANK(B49),"",IF(EXACT(L49,"No tiene"),"Disponibilidad",IF(E92=DO49,DR49,IF(E92=CY49,DB49,IF(E92=CM49,CP49,IF(E92=CA49,CD49,"")))))),"") ->  | G92: =IFERROR(IF(ISBLANK(B49),"",IF(EXACT(L49,"No tiene"),"",IF(ISBLANK(B49),"",IF(E92=DO49,DH49,IF(E92=CY49,Y49,IF(E92=CM49,Y49,IF(E92=CA49,Y49,""))))))),"") ->  | H92: =IFERROR(IF(ISBLANK(B49),"",IF(EXACT(L49,"No tiene"),"",IF(E92=DO49,"Para este Circuito lo recomendable es Cambiar el Conductor por el Conductor Recomendado",IF(E92=CY49,"Lo recomendable para este circuito es adicionar 3 conductores del mismo calibre del conductor recomendado",IF(E92=CM49,"Lo recomendable para este circuito es adicionar 2 conductores del mismo calibre del conductor recomendado",IF(E92=CA49,"Lo recomendable para este circuito es adicionar 1 conductor del mismo calibre del conductor recomendado","")))))),"") ->  | BM92: =SUM(BM48:BM54)/1000 ->  | BN92: =SUM(BN48:BN54)/1000 ->  | BO92: =SUM(BO48:BO54)/1000 -> 
A93: 3 | B93: sdfg | E93: No Tiene
H129: DESCRIPCIÓN | I129: VARIABLE | J129: VALOR
F131: Temperatura Ambiente [°C] | I131: θa | J131: 32
G132: Costo Lucro Cesante [$] | I132: CLC | J132: 0.0001
G133: Costo de KWh [$/KWh] | I133: P | J133: 600
H134: Temperatura maxima nominal del conductor [°C] | I134: θ | J134: 90
G135: Tasa de crecimiento de carga | I135: a | J135: 1%
G136: Factor de Potencia | I136: Fp | J136: 0.9
F137: Caida de Tension Admitida en los circuitos | J137: 2%
G138: Variacion Anual de la demanda | I138: D | J138: 3
F139: Resistividad del Cobre a 20°C [Ω*m] | I139: ρ₂₀ | J139: 1.835E-08
D140: Coeficiente de Temperatura de resistencia del cobre a 20°C [k⁻¹] | I140: α₂₀ | J140: 6.800E-03
F141: Aumento anual del costo de energia | I141: b | J141: 3%
G142: A promedio [$/m * mm²] | I142: A | J142: 383.36
G143: Vida economica [años] | I143: N | J143: 20
G144: Tasa de Capitalizacion por año | I144: i | J144: 6%
E145: Cantidad auxiliar definida en la Norma IEC 60287-1-1 | I145: B | J145: 1
E146: Temperatura media de servicio del conductor [°C] | I146: θm | J146: 45
E147: Emisiones de CO₂ generacion [Kg-CO₂ / KWh] | I147: K₁ | J147: 0.343
E148: Emisiones de CO₂ produccion [Kg-CO₂ / KWh] | I148: K₂ | J148: 4.09
D149: Numero de Circuitos que llevan el mismo tipo y valor de Carga | I149: Nc | J149: 1
G150: IEC 60287-3-2. Ecuación 8 | I150: Q | J150: =(1-(J151)^(N))/(1-J151) -> 18.42
G151: IEC 60287-3-2. Ecuación 9 | I151: r | J151: =(((1+a_)^2)*(1+b_))/(1+i) -> 0.99
B161: Nota: | C161: Los costos de los conductores están definidos por los precios de listas de los cableros Colombianos. Si su proyecto tiene mejores precios, puede editar estas tablas y los resultados se actualizarán automaticamente.
C163: Calibre [AWG] | D163: Seccion Transversal mm² | E163: Peso Total Aproximado [Kg/Km] | F163: Corriente 75 ° C | G163: Costo inicial (CI) | J163: A
G164: Conductor | H164: Cambiar conductor | I164: Total Cambiar Conductor
C165: 16 | D165: 1.31 | E165: =D165*8.96 -> 12 | F165: -- | G165: =722 -> $ 722 | H165: $ 11,400 | I165: =G165+H165 -> $ 12,122 | J165: 429.4 | AA165: =C166 -> 14 | AB165: =D166 -> 2.08
C166: 14 | D166: 2.08 | E166: 19 | F166: 20* | G166: =883 -> $ 883 | H166: =H165+200 -> $ 11,600 | I166: $ 12,483 | J166: 468.8 | AA166: 12 | AB166: 3.30
C167: 12 | D167: 3.30 | E167: 30 | F167: 25* | G167: $ 1,261 | H167: =H166+200 -> $ 11,800 | I167: $ 13,061 | J167: 473.8 | AA167: 10 | AB167: 5.25
C168: 10 | D168: 5.25 | E168: 47 | F168: 35* | G168: $ 1,824 | H168: =H167+500 -> $ 12,300 | I168: $ 14,124 | J168: 545.1 | AA168: 8 | AB168: 8.36
C169: 8 | D169: 8.36 | E169: 75 | F169: 50 | G169: $ 2,705 | H169: =H168+800 -> $ 13,100 | I169: $ 15,805 | J169: 540.5 | AA169: 6 | AB169: 13.29
C170: 6 | D170: 13.29 | E170: 119 | F170: 65 | G170: $ 4,177 | H170: =H169+800 -> $ 13,900 | I170: $ 18,077 | J170: 460.9 | AA170: 4 | AB170: 21.14
C171: 4 | D171: 21.14 | E171: 189 | F171: 85 | G171: $ 6,445 | H171: =H170+950 -> $ 14,850 | I171: $ 21,295 | J171: 409.9 | AA171: 3 | AB171: 26.66
C172: 3 | D172: 26.66 | E172: 239 | F172: 100 | G172: $ 8,562 | H172: =H171+950 -> $ 15,800 | I172: $ 24,362 | J172: 555.6 | AA172: 2 | AB172: 33.62
C173: 2 | D173: 33.62 | E173: 301 | F173: 115 | G173: $ 9,996 | H173: =H172+1300 -> $ 17,100 | I173: $ 27,096 | J173: 392.8 | AA173: 1 | AB173: 42.20
C174: 1 | D174: 42.20 | E174: 378 | F174: 130 | G174: $ 11,677 | H174: =H173+1650 -> $ 18,750 | I174: $ 30,427 | J174: 388.2 | AA174: 1/0 | AB174: 53.50
C175: 1/0 | D175: 53.50 | E175: 479 | F175: 150 | G175: $ 16,332 | H175: =H174+1100 -> $ 19,850 | I175: $ 36,182 | J175: 509.3 | AA175: 2/0 | AB175: 67.44
C176: 2/0 | D176: 67.44 | E176: 604 | F176: 175 | G176: $ 20,408 | H176: =H175+1300 -> $ 21,150 | I176: $ 41,558 | J176: 385.7 | AA176: 3/0 | AB176: 85.02
C177: 3/0 | D177: 85.02 | E177: 762 | F177: 200 | G177: $ 27,094 | H177: =H176+500 -> $ 21,650 | I177: $ 48,744 | J177: 408.8 | AA177: 4/0 | AB177: 107.21
C178: 4/0 | D178: 107.21 | E178: 961 | F178: 230 | G178: $ 31,977 | H178: =H177+3750 -> $ 25,400 | I178: $ 57,377 | J178: 389.0 | AA178: 250 | AB178: 126.67
C179: 250 | D179: 126.67 | E179: 1135 | F179: 255 | G179: $ 38,611 | H179: =H178+1100 -> $ 26,500 | I179: $ 65,111 | J179: 397.4 | AA179: 300 | AB179: 152.01
C180: 300 | D180: 152.01 | E180: 1362 | F180: 285 | G180: $ 46,081 | H180: =H179+2300 -> $ 28,800 | I180: $ 74,881 | J180: 385.6 | AA180: 350 | AB180: 177.34
C181: 350 | D181: 177.34 | E181: 1589 | F181: 310 | G181: $ 53,841 | H181: =H180+2000 -> $ 30,800 | I181: $ 84,641 | J181: 385.3 | AA181: 400 | AB181: 202.68
C182: 400 | D182: 202.68 | E182: 1816 | F182: 335 | G182: $ 62,088 | H182: =H181+2100 -> $ 32,900 | I182: $ 94,988 | J182: 408.3 | AA182: 500 | AB182: 253.35
C183: 500 | D183: 253.35 | E183: 2270 | F183: 380 | G183: $ 80,036 | H183: =H182+2100 -> $ 35,000 | I183: $ 115,036 | J183: 395.7 | AA183: 600 | AB183: 304.02
C184: 600 | D184: 304.02 | E184: 2724 | F184: 420 | G184: $ 94,730 | H184: =H183+4900 -> $ 39,900 | I184: $ 134,630 | J184: 386.7 | AA184: 700 | AB184: 354.69
C185: 700 | D185: 354.69 | E185: 3178 | F185: 460 | G185: $ 111,127 | H185: =H184+3200 -> $ 43,100 | I185: $ 154,227 | J185: 386.8 | AA185: 750 | AB185: 380.02
C186: 750 | D186: 380.02 | E186: 3405 | F186: 475 | G186: $ 119,826 | H186: =H185+2400 -> $ 45,500 | I186: $ 165,326 | J186: 438.2 | AA186: 800 | AB186: 405.36
C187: 800 | D187: 405.36 | E187: 3632 | F187: 490 | G187: $ 127,200 | H187: =H186+2500 -> $ 48,000 | I187: $ 175,200 | J187: 389.7 | AA187: 900 | AB187: 456.03
C188: 900 | D188: 456.03 | E188: 4086 | F188: 520 | G188: $ 136,700 | H188: =H187+9500 -> $ 57,500 | I188: $ 194,200 | J188: 375.0 | AA188: 1000 | AB188: 506.70
C189: 1000 | D189: 506.70 | E189: 4540 | F189: 545 | G189: $ 146,400 | H189: =H188+9500 -> $ 67,000 | I189: $ 213,400 | J189: 429.43 | AA189: 1250 | AB189: 633.38
C190: 1250 | D190: 633.38 | E190: 5675 | F190: 590 | G190: $ 156,200 | H190: =H189+9500 -> $ 76,500 | I190: $ 232,700 | J190: 429.43 | AA190: 1500 | AB190: 760.05
H191: PROMEDIO | J191: =AVERAGE(J165:J190) -> 429.43
